fUST/lending_fUST_20240828
["ID","MTS","AMOUNT","RATE_DAILY","PERIOD"]
[336389650,1724801446070,-727.35,0.00012328,2]
[336389651,1724801446080,-13335.03,0.00012328,2]
[336389653,1724801446089,-748.14,0.00012328,2]
[336389654,1724801446098,-1617.96,0.00012328,2]
[336389655,1724801446108,-3097.97,0.00012328,2]
[336389656,1724801446117,-500.0,0.00012328,2]
[336389657,1724801446129,-2916.8,0.00012328,2]
[336389658,1724801446142,-580.3,0.00012328,2]
[336389659,1724801446151,-500.0,0.00012328,2]
[336389660,1724801446160,-562.68,0.00012328,2]
[336389661,1724801446169,-500.0,0.00012328,2]
[336389662,1724801446178,-880.63,0.00012328,2]
[336389663,1724801446187,-500.0,0.00012328,2]
[336389664,1724801446196,-710.52,0.00012328,2]
[336389665,1724801446206,-630.35,0.00012328,2]
[336389666,1724801446215,-7505.91,0.00012328,2]
[336389667,1724801446224,-2097.98,0.00012328,2]
[336389668,1724801446233,-1201.48,0.00012328,2]
[336389669,1724801446242,-2758.05,0.00012328,2]
[336389670,1724801446251,-4988.1,0.00012328,2]
[336389671,1724801446261,-169.62,0.00012328,2]
[336389672,1724801446270,-500.0,0.00012328,2]
[336389673,1724801446280,-500.0,0.00012328,2]
[336389674,1724801446290,-500.0,0.00012328,2]
[336389675,1724801446300,-3527.68,0.00012328,2]
[336389676,1724801446309,-500.0,0.00012328,2]
[336389677,1724801446318,-500.0,0.00012328,2]
[336389678,1724801446327,-500.0,0.00012328,2]
[336389679,1724801446336,-2985.82,0.00012328,2]
[336389681,1724801446346,-2619.53,0.00012328,2]
[336389682,1724801446355,-4448.4,0.00012328,2]
[336389684,1724801446365,-345.77371257,0.00012356,2]
[336389685,1724801446374,-154.95091821,0.00012356,2]
[336389686,1724801446384,-7530.76171895,0.00012409,2]
[336389687,1724801446393,-1000.0,0.00012421,2]
[336389688,1724801446402,-500.0,0.00012602,2]
[336389689,1724801446411,-500.0,0.00012602,2]
[336389690,1724801446420,-500.0,0.00012602,2]
[336389691,1724801446430,-681.99,0.00012602,2]
[336389692,1724801446439,-1186.09,0.00012602,2]
[336389693,1724801446449,-500.0,0.00012602,2]
[336389694,1724801446458,-1309.09,0.00012602,2]
[336389695,1724801446468,-572.68,0.00012602,2]
[336389696,1724801446477,-845.49,0.00012602,2]
[336389697,1724801446486,-500.0,0.00012602,2]
[336389698,1724801446496,-500.0,0.00012602,2]
[336389699,1724801446506,-837.23,0.00012602,2]
[336389700,1724801446515,-500.0,0.00012602,2]
[336389701,1724801446525,-515.02,0.00012602,2]
[336389702,1724801446535,-844.14,0.00012602,2]
[336389703,1724801446544,-1838.65,0.00012602,2]
[336389704,1724801446554,-500.0,0.00012602,2]
[336389705,1724801446563,-727.35,0.00012602,2]
[336389706,1724801446572,-13335.03,0.00012602,2]
[336389707,1724801446582,-748.14,0.00012602,2]
[336389708,1724801446592,-1617.96,0.00012602,2]
[336389709,1724801446601,-3097.97,0.00012602,2]
[336389710,1724801446610,-500.0,0.00012602,2]
[336389711,1724801446620,-2916.8,0.00012602,2]
[336389712,1724801446631,-500.0,0.00012602,2]
[336389713,1724801446642,-504.15,0.00012602,2]
[336389714,1724801446651,-880.63,0.00012602,2]
[336389715,1724801446661,-500.0,0.00012602,2]
[336389716,1724801446671,-710.52,0.00012602,2]
[336389717,1724801446681,-630.35,0.00012602,2]
[336389718,1724801446690,-7505.91,0.00012602,2]
[336389719,1724801446700,-2097.98,0.00012602,2]
[336389720,1724801446710,-1201.48,0.00012602,2]
[336389721,1724801446720,-2758.05,0.00012602,2]
[336389722,1724801446730,-4988.1,0.00012602,2]
[336389723,1724801446740,-338.5,0.00012602,2]
[336389724,1724801446750,-500.0,0.00012602,2]
[336389725,1724801446760,-3527.68,0.00012602,2]
[336389726,1724801446772,-276.23,0.00012602,2]
[336389727,1724801446782,-500.0,0.00012602,2]
[336389728,1724801446791,-500.0,0.00012602,2]
[336389729,1724801446801,-2985.82,0.00012602,2]
[336389730,1724801446812,-2619.53,0.00012602,2]
[336389731,1724801446821,-4448.4,0.00012602,2]
[336389732,1724801446831,-150.0,0.00012644,2]
[336389733,1724801446841,-522.0,0.00012644,2]
[336389734,1724801446852,-7530.76171895,0.00012776,2]
[336389735,1724801446862,-811.78467002,0.00012779,2]
[336389736,1724801446872,-202.68,0.00012876,2]
[336389737,1724801446882,-500.0,0.00012876,2]
[336389738,1724801446892,-185.246333,0.00012876,2]
[336389739,1724801446901,-185.246333,0.00012876,2]
[336389740,1724801446910,-500.0,0.00012876,2]
[336389741,1724801446920,-681.99,0.00012876,2]
[336389742,1724801446930,-1186.09,0.00012876,2]
[336389743,1724801446939,-500.0,0.00012876,2]
[336389744,1724801446948,-1309.09,0.00012876,2]
[336389745,1724801446958,-845.49,0.00012876,2]
[336389746,1724801446968,-500.0,0.00012876,2]
[336389747,1724801446978,-500.0,0.00012876,2]
[336389748,1724801446987,-837.23,0.00012876,2]
[336389749,1724801446997,-500.0,0.00012876,2]
[336389750,1724801447007,-515.02,0.00012876,2]
[336389751,1724801447016,-844.14,0.00012876,2]
[336389752,1724801447026,-1838.65,0.00012876,2]
[336389753,1724801447035,-500.0,0.00012876,2]
[336389754,1724801447045,-727.35,0.00012876,2]
[336389755,1724801447054,-13335.03,0.00012876,2]
[336389756,1724801447063,-748.14,0.00012876,2]
[336389757,1724801447073,-1617.96,0.00012876,2]
[336389758,1724801447083,-3097.97,0.00012876,2]
[336389759,1724801447092,-500.0,0.00012876,2]
[336389760,1724801447102,-2916.8,0.00012876,2]
[336389761,1724801447111,-500.0,0.00012876,2]
[336389762,1724801447120,-880.63,0.00012876,2]
[336389763,1724801447130,-710.52,0.00012876,2]
[336389764,1724801447139,-630.35,0.00012876,2]
[336389765,1724801447149,-7505.91,0.00012876,2]
[336389766,1724801447158,-2097.98,0.00012876,2]
[336389767,1724801447168,-1201.48,0.00012876,2]
[336389768,1724801447177,-2758.05,0.00012876,2]
[336389769,1724801447187,-4988.1,0.00012876,2]
[336389770,1724801447197,-500.0,0.00012876,2]
[336389771,1724801447207,-3527.68,0.00012876,2]
[336389772,1724801447217,-500.0,0.00012876,2]
[336389773,1724801447227,-500.0,0.00012876,2]
[336389774,1724801447237,-2985.82,0.00012876,2]
[336389775,1724801447246,-293.16386878,0.00012876,2]
[336389776,1724801447525,-500.0,0.00010958,2]
[336389777,1724801447536,-500.0,0.00010958,2]
[336389778,1724801447547,-500.0,0.00010958,2]
[336389779,1724801447557,-500.0,0.00011232,2]
[336389780,1724801447568,-500.0,0.00011506,2]
[336389781,1724801447578,-288.5284708,0.00011621,2]
[336389782,1724801447588,-500.0,0.0001178,2]
[336389783,1724801447598,-500.0,0.00012054,2]
[336389784,1724801447608,-500.0,0.00012328,2]
[336389785,1724801447619,-500.0,0.00012602,2]
[336389786,1724801447630,-2326.36613122,0.00012876,2]
[336389787,1724801447640,-4448.4,0.00012876,2]
[336389788,1724801447650,-410.95,0.00012876,2]
[336389789,1724801447660,-11915.284187,0.000129,2]
[336389790,1724801447920,-412.88068041,0.000129,2]
[336389791,1724801447930,-600.0,0.00012939,2]
[336389792,1724801447940,-947.67157786,0.00012971,2]
[336389793,1724801447950,-1656.85324484,0.00013,2]
[336389794,1724801447960,-150.112233,0.00013,2]
[336389795,1724801447970,-337.0980992,0.00013,2]
[336389796,1724801447981,-150.112233,0.00013,2]
[336389797,1724801447991,-150.112233,0.00013,2]
[336389798,1724801448001,-101.80012756,0.00013,2]
[336389799,1724801448014,-48.31210544,0.00013,2]
[336389800,1724801448024,-150.112233,0.00013,2]
[336389801,1724801448035,-150.112233,0.00013,2]
[336389802,1724801448045,-83.73294831,0.00013,2]
[336389803,1724801448057,-66.37928469,0.00013,2]
[336389804,1724801448066,-150.112233,0.00013,2]
[336389805,1724801448075,-150.112233,0.00013,2]
[336389806,1724801448085,-150.112233,0.00013,2]
[336389807,1724801448096,-150.112233,0.00013,2]
[336389808,1724801448106,-2500.0,0.00013,2]
[336389809,1724801448116,-150.112233,0.00013,2]
[336389810,1724801448126,-1996.69259789,0.00013017,2]
[336389811,1724801448137,-6252.15469431,0.00013017,2]
[336389812,1724801448147,-934.56859613,0.00013017,2]
[336389813,1724801448157,-299.99534602,0.00013017,2]
[336389814,1724801448167,-153.0,0.00013017,2]
[336389815,1724801448177,-375.14405297,0.00013022,2]
[336389816,1724801448392,-73.36914513,0.00010958,2]
[336389817,1724801448405,-426.63085487,0.00010958,2]
[336389818,1724801448415,-257.21388744,0.00013017,2]
[336389819,1724801448426,-224.85594703,0.00013022,2]
[336389820,1724801448435,-600.0,0.00013042,2]
[336389821,1724801448446,-600.0,0.00013042,2]
[336389822,1724801448457,-409.3878908,0.00013043,2]
[336389823,1724801448467,-409.3878908,0.00013043,2]
[336389824,1724801448478,-409.3878908,0.00013043,2]
[336389825,1724801448489,-818.7757816,0.00013043,2]
[336389826,1724801448500,-409.3878908,0.00013043,2]
[336389827,1724801448510,-409.3878908,0.00013043,2]
[336389828,1724801448520,-409.3878908,0.00013043,2]
[336389829,1724801448529,-818.7757816,0.00013043,2]
[336389830,1724801448539,-818.7757816,0.00013043,2]
[336389831,1724801448549,-1143.26924986,0.0001305,2]
[336389832,1724801448559,-30000.0,0.0001305,2]
[336389833,1724801448569,-150.112233,0.000131,2]
[336389834,1724801448579,-150.112233,0.000131,2]
[336389835,1724801448588,-150.112233,0.000131,2]
[336389836,1724801448598,-150.112233,0.000131,2]
[336389837,1724801448609,-150.112233,0.000131,2]
[336389838,1724801448620,-150.112233,0.000131,2]
[336389839,1724801448631,-150.112233,0.000131,2]
[336389840,1724801448641,-150.112233,0.000131,2]
[336389841,1724801448651,-150.112233,0.000131,2]
[336389842,1724801448662,-150.112233,0.000131,2]
[336389843,1724801448672,-150.112233,0.000131,2]
[336389844,1724801448683,-150.112233,0.000131,2]
[336389845,1724801448693,-465.06875366,0.0001314,2]
[336389846,1724801448703,-706.41932482,0.0001315,2]
[336389847,1724801448713,-151.0,0.0001315,2]
[336389848,1724801448724,-151.0,0.0001315,2]
[336389849,1724801448734,-403.361971,0.0001315,2]
[336389850,1724801448745,-403.361971,0.0001315,2]
[336389851,1724801448756,-500.0,0.0001315,2]
[336389852,1724801448771,-500.0,0.0001315,2]
[336389853,1724801448782,-681.99,0.0001315,2]
[336389854,1724801448793,-1186.09,0.0001315,2]
[336389855,1724801448803,-500.0,0.0001315,2]
[336389856,1724801448814,-1309.09,0.0001315,2]
[336389857,1724801448825,-845.49,0.0001315,2]
[336389858,1724801448835,-500.0,0.0001315,2]
[336389859,1724801448846,-500.0,0.0001315,2]
[336389860,1724801448856,-837.23,0.0001315,2]
[336389861,1724801448867,-500.0,0.0001315,2]
[336389862,1724801448877,-515.02,0.0001315,2]
[336389863,1724801448887,-844.14,0.0001315,2]
[336389864,1724801448897,-1838.65,0.0001315,2]
[336389865,1724801448907,-500.0,0.0001315,2]
[336389866,1724801448918,-727.35,0.0001315,2]
[336389867,1724801448929,-13335.03,0.0001315,2]
[336389868,1724801448939,-748.14,0.0001315,2]
[336389869,1724801448948,-1617.96,0.0001315,2]
[336389870,1724801448958,-3097.97,0.0001315,2]
[336389871,1724801448968,-500.0,0.0001315,2]
[336389872,1724801448978,-2916.8,0.0001315,2]
[336389873,1724801448987,-500.0,0.0001315,2]
[336389874,1724801448998,-880.63,0.0001315,2]
[336389875,1724801449008,-710.52,0.0001315,2]
[336389876,1724801449018,-630.35,0.0001315,2]
[336389877,1724801449028,-7505.91,0.0001315,2]
[336389878,1724801449040,-2097.98,0.0001315,2]
[336389879,1724801449050,-1201.48,0.0001315,2]
[336389880,1724801449060,-2758.05,0.0001315,2]
[336389881,1724801449070,-3716.16757726,0.0001315,2]
[336389882,1724801449083,-1271.93242274,0.0001315,2]
[336389883,1724801449094,-158.43,0.0001315,2]
[336389884,1724801449104,-3527.68,0.0001315,2]
[336389885,1724801449115,-500.0,0.0001315,2]
[336389886,1724801449125,-500.0,0.0001315,2]
[336389887,1724801449138,-2985.82,0.0001315,2]
[336389888,1724801449148,-2619.53,0.0001315,2]
[336389889,1724801449158,-4448.4,0.0001315,2]
[336389890,1724801449167,-42425.75558955,0.00013193,5]
[336389891,1724801449176,-600.0,0.00013193,2]
[336389892,1724801449186,-600.0,0.00013258,2]
[336389893,1724801449195,-33.5741495,0.00013267,2]
[336389896,1724801522308,-500.0,0.00010958,2]
[336389897,1724801522341,-422.33304252,0.00010958,2]
[336389898,1724801522386,-77.66695748,0.00010958,2]
[336389899,1724801522419,-500.0,0.00010958,2]
[336389900,1724801522453,-344.66608504,0.00010958,2]
[336389901,1724801522491,-155.33391496,0.00010958,2]
[336389902,1724801522525,-419.94368293,0.00010958,2]
[336389935,1724802446138,-288.96963797,8.769e-05,2]
[336389936,1724802446160,-180.86285832,8.883e-05,2]
[336389937,1724802446185,-300.0,9.614e-05,2]
[336389938,1724802446205,-6576.78411112,9.615e-05,2]
[336389939,1724802446235,-6490.15983344,9.615e-05,2]
[336389942,1724802574126,-11833.05605544,9.615e-05,2]
[336389943,1724802574154,-159.090909,9.718e-05,2]
[336389944,1724802574180,-159.090909,9.769e-05,2]
[336389945,1724802574207,-159.090909,9.82e-05,2]
[336389946,1724802574233,-159.090909,9.87e-05,2]
[336389947,1724802574256,-159.090909,9.921e-05,2]
[336389948,1724802574279,-159.090909,9.972e-05,2]
[336389949,1724802574302,-159.090909,0.00010022,2]
[336389950,1724802574324,-159.090909,0.00010073,2]
[336389951,1724802574346,-169.54206732,0.00010081,2]
[336389956,1724802603729,-159.090909,0.00010123,2]
[336389958,1724802603770,-159.090909,0.00010174,2]
[336389960,1724802603805,-159.090909,0.00010225,2]
[336389962,1724802603838,-289.91775942,0.0001026,2]
[336390025,1724802625225,1250.52684114,0.00010081,2]
[336390045,1724802632361,-1464.2945855,0.00010081,2]
[336390046,1724802632372,-156.73623269,0.00010262,2]
[336390047,1724802632382,-1558.37873585,0.00010581,2]
[336390048,1724802632392,-1186.23947534,0.00010739,2]
[336390049,1724802632402,-811.78467002,0.00010739,2]
[336390050,1724802632413,-500.0,0.00010958,2]
[336390051,1724802632423,-500.0,0.00010958,2]
[336390052,1724802632434,-500.0,0.00010958,2]
[336390053,1724802632445,-500.0,0.00010958,2]
[336390054,1724802632456,-189.95204957,0.00010958,2]
[336390055,1724802632465,-458.7429505,0.00010958,2]
[336390056,1724802632474,-500.0,0.00010958,2]
[336390057,1724802632485,-500.0,0.00010958,2]
[336390058,1724802632495,-270.77993574,0.00010958,2]
[336390059,1724802632508,-229.22006426,0.00010958,2]
[336390060,1724802632519,-165.2947368,0.00010958,2]
[336390061,1724802632531,-331.73734622,0.00010958,2]
[336390062,1724802632542,-500.0,0.00010958,2]
[336390063,1724802632553,-500.0,0.00010958,2]
[336390064,1724802632564,-500.0,0.00010958,2]
[336390065,1724802632575,-396.55381663,0.00010958,2]
[336390066,1724802632586,-500.0,0.00010958,2]
[336390067,1724802632595,-500.0,0.00010958,2]
[336390068,1724802632605,-500.0,0.00010958,2]
[336390069,1724802632620,-346.9190094,0.00010958,2]
[336390070,1724802632638,-131.3409279,0.00010958,2]
[336390071,1724802632648,-500.0,0.00010958,2]
[336390072,1724802632659,-500.0,0.00010958,2]
[336390073,1724802632669,-500.0,0.00010958,2]
[336390074,1724802632679,-500.0,0.00010958,2]
[336390075,1724802632689,-399.42,0.00010958,2]
[336390076,1724802632699,-500.0,0.00010958,2]
[336390077,1724802632709,-92.82420923,0.00010958,2]
[336390085,1724802638469,-407.17579077,0.00010958,2]
[336390086,1724802638481,-500.0,0.00010958,2]
[336390087,1724802638493,-500.0,0.00010958,2]
[336390088,1724802638503,-500.0,0.00010958,2]
[336390089,1724802638512,-500.0,0.00010958,2]
[336390090,1724802638521,-500.0,0.00010958,2]
[336390091,1724802638530,-500.0,0.00010958,2]
[336390092,1724802638540,-500.0,0.00010958,2]
[336390093,1724802638550,-500.0,0.00010958,2]
[336390094,1724802638560,-500.0,0.00010958,2]
[336390095,1724802638569,-500.0,0.00010958,2]
[336390096,1724802638583,-500.0,0.00010958,2]
[336390097,1724802638592,-188.08,0.00010958,2]
[336390098,1724802638603,-500.0,0.00010958,2]
[336390099,1724802638613,-500.0,0.00010958,2]
[336390105,1724802638862,-500.0,0.00010958,2]
[336390106,1724802638872,-604.34,0.00010958,2]
[336390107,1724802638882,-500.0,0.00010958,2]
[336390108,1724802638891,-500.0,0.00010958,2]
[336390109,1724802638901,-500.0,0.00010958,2]
[336390110,1724802638910,-1265.21,0.00010958,2]
[336390111,1724802638920,-500.0,0.00010958,2]
[336390112,1724802638929,-500.0,0.00010958,2]
[336390113,1724802638940,-500.0,0.00010958,2]
[336390114,1724802638949,-500.0,0.00010958,2]
[336390115,1724802638964,-500.0,0.00010958,2]
[336390116,1724802638974,-500.0,0.00010958,2]
[336390117,1724802638984,-500.0,0.00010958,2]
[336390118,1724802638996,-500.0,0.00010958,2]
[336390119,1724802639010,-500.0,0.00010958,2]
[336390120,1724802639020,-341.24410546,0.00010958,2]
[336390121,1724802639030,-500.0,0.00010958,2]
[336390122,1724802639039,-500.0,0.00010958,2]
[336390123,1724802639049,-500.0,0.00010958,2]
[336390124,1724802639058,-500.0,0.00010958,2]
[336390125,1724802639068,-500.0,0.00010958,2]
[336390126,1724802639077,-500.0,0.00010958,2]
[336390127,1724802639086,-500.0,0.00010958,2]
[336390128,1724802639096,-500.0,0.00010958,2]
[336390129,1724802639105,-598.25938544,0.00010958,2]
[336390130,1724802639114,-500.0,0.00010958,2]
[336390131,1724802639124,-500.0,0.00010958,2]
[336390132,1724802639133,-500.0,0.00010958,2]
[336390133,1724802639143,-500.0,0.00010958,2]
[336390134,1724802639153,-707.04,0.00010958,2]
[336390135,1724802639163,-500.0,0.00010958,2]
[336390136,1724802639176,-500.0,0.00010958,2]
[336390137,1724802639185,-500.0,0.00010958,2]
[336390138,1724802639195,-500.0,0.00010958,2]
[336390139,1724802639205,-500.0,0.00010958,2]
[336390140,1724802639215,-500.0,0.00010958,2]
[336390141,1724802639225,-500.0,0.00010958,2]
[336390142,1724802639235,-575.58917423,0.00010958,2]
[336390143,1724802639249,-500.0,0.00010958,2]
[336390144,1724802639261,-1312.42,0.00010958,2]
[336390145,1724802639270,-610.66276476,0.00010958,2]
[336390146,1724802639281,-500.0,0.00010958,2]
[336390147,1724802639290,-500.0,0.00010958,2]
[336390148,1724802639299,-500.0,0.00010958,2]
[336390149,1724802639309,-500.0,0.00010958,2]
[336390150,1724802639319,-500.0,0.00010958,2]
[336390151,1724802639328,-500.0,0.00010958,2]
[336390152,1724802639338,-500.0,0.00010958,2]
[336390153,1724802639347,-500.0,0.00010958,2]
[336390154,1724802639357,-620.50064954,0.00010958,2]
[336390155,1724802639366,-500.0,0.00010958,2]
[336390156,1724802639375,-500.0,0.00010958,2]
[336390157,1724802639385,-500.0,0.00010958,2]
[336390158,1724802639394,-500.0,0.00010958,2]
[336390159,1724802639404,-500.0,0.00010958,2]
[336390160,1724802639414,-500.0,0.00010958,2]
[336390161,1724802639424,-500.0,0.00010958,2]
[336390162,1724802639433,-500.0,0.00010958,2]
[336390163,1724802639443,-500.0,0.00010958,2]
[336390164,1724802639452,-500.0,0.00010958,2]
[336390165,1724802639463,-500.0,0.00010958,2]
[336390166,1724802639473,-500.0,0.00010958,2]
[336390167,1724802639482,-500.0,0.00010958,2]
[336390168,1724802639493,-500.0,0.00010958,2]
[336390169,1724802639502,-500.0,0.00010958,2]
[336390170,1724802639511,-500.0,0.00010958,2]
[336390171,1724802639520,-500.0,0.00010958,2]
[336390172,1724802639529,-500.0,0.00010958,2]
[336390173,1724802639538,-500.0,0.00010958,2]
[336390174,1724802639548,-500.0,0.00010958,2]
[336390175,1724802639557,-331.70526957,0.00010958,2]
[336390176,1724802639567,-500.0,0.00010958,2]
[336390177,1724802639576,-500.0,0.00010958,2]
[336390178,1724802639586,-500.0,0.00010958,2]
[336390179,1724802639595,-441.16,0.00010958,2]
[336390180,1724802639605,-584.71752613,0.00010958,2]
[336390181,1724802639615,-500.0,0.00010958,2]
[336390182,1724802639625,-500.0,0.00010958,2]
[336390183,1724802639635,-313.09800874,0.00010958,2]
[336390184,1724802639645,-500.0,0.00010958,2]
[336390185,1724802639655,-500.0,0.00010958,2]
[336390186,1724802639664,-500.0,0.00010958,2]
[336390187,1724802639674,-289.78319095,0.00010958,2]
[336390188,1724802639683,-500.0,0.00010958,2]
[336390189,1724802639693,-279.85197933,0.00010958,2]
[336390190,1724802639702,-500.0,0.00010958,2]
[336390191,1724802639713,-500.0,0.00010958,2]
[336390192,1724802639722,-500.0,0.00010958,2]
[336390193,1724802639732,-155.7983193,0.00010958,2]
[336390194,1724802639742,-532.54968479,0.00010958,2]
[336390195,1724802639751,-500.0,0.00010958,2]
[336390196,1724802639761,-500.0,0.00010958,2]
[336390197,1724802639771,-518.16902662,0.00010958,2]
[336390198,1724802639781,-315.96903359,0.00010958,2]
[336390199,1724802639790,-500.0,0.00010958,2]
[336390200,1724802639800,-865.33,0.00010958,2]
[336390201,1724802639809,-500.0,0.00010958,2]
[336390202,1724802639820,-500.0,0.00010958,2]
[336390203,1724802639829,-500.0,0.00010958,2]
[336390205,1724802639839,-500.0,0.00010958,2]
[336390206,1724802639850,-500.0,0.00010958,2]
[336390207,1724802639871,-500.0,0.00010958,2]
[336390208,1724802639881,-500.0,0.00010958,2]
[336390209,1724802639891,-500.0,0.00010958,2]
[336390210,1724802639902,-316.24143331,0.00010958,2]
[336390211,1724802639913,-500.0,0.00010958,2]
[336390212,1724802639923,-500.0,0.00010958,2]
[336390213,1724802639932,-500.0,0.00010958,2]
[336390214,1724802639943,-500.0,0.00010958,2]
[336390215,1724802639953,-500.0,0.00010958,2]
[336390216,1724802639964,-500.0,0.00010958,2]
[336390217,1724802639975,-500.0,0.00010958,2]
[336390218,1724802639985,-500.0,0.00010958,2]
[336390219,1724802639996,-500.0,0.00010958,2]
[336390220,1724802640007,-500.0,0.00010958,2]
[336390221,1724802640017,-500.0,0.00010958,2]
[336390222,1724802640027,-500.0,0.00010958,2]
[336390223,1724802640036,-500.0,0.00010958,2]
[336390225,1724802640047,-500.0,0.00010958,2]
[336390226,1724802640057,-552.64,0.00010958,2]
[336390227,1724802640067,-500.0,0.00010958,2]
[336390228,1724802640077,-599.66918533,0.00010958,2]
[336390229,1724802640086,-500.0,0.00010958,2]
[336390230,1724802640097,-500.0,0.00010958,2]
[336390231,1724802640106,-500.0,0.00010958,2]
[336390232,1724802640116,-500.0,0.00010958,2]
[336390233,1724802640126,-500.0,0.00010958,2]
[336390234,1724802640136,-500.0,0.00010958,2]
[336390235,1724802640146,-500.0,0.00010958,2]
[336390236,1724802640156,-302.74506878,0.00010958,2]
[336390237,1724802640170,-500.0,0.00010958,2]
[336390238,1724802640180,-500.0,0.00010958,2]
[336390239,1724802640189,-500.0,0.00010958,2]
[336390240,1724802640199,-500.5,0.00010958,2]
[336390241,1724802640210,-500.0,0.00010958,2]
[336390242,1724802640220,-337.54783341,0.00010958,2]
[336390243,1724802640230,-506.7,0.00010958,2]
[336390244,1724802640241,-500.0,0.00010958,2]
[336390245,1724802640253,-463.08579403,0.00010958,2]
[336390246,1724802640263,-500.0,0.00010958,2]
[336390247,1724802640272,-500.0,0.00010958,2]
[336390248,1724802640282,-500.0,0.00010958,2]
[336390249,1724802640292,-500.0,0.00010958,2]
[336390250,1724802640303,-500.0,0.00010958,2]
[336390251,1724802640312,-500.0,0.00010958,2]
[336390252,1724802640322,-591.48488611,0.00010958,2]
[336390253,1724802640332,-619.48238355,0.00010958,2]
[336390254,1724802640343,-3994.35820614,0.00010958,2]
[336390261,1724802640792,-550.05179386,0.00010958,2]
[336390262,1724802640814,-500.0,0.00010958,2]
[336390263,1724802640828,-500.0,0.00010958,2]
[336390264,1724802640842,-500.0,0.00010958,2]
[336390265,1724802640857,-500.0,0.00010958,2]
[336390266,1724802640870,-500.0,0.00010958,2]
[336390267,1724802640883,-500.0,0.00010958,2]
[336390269,1724802640894,-423.55996739,0.00010958,2]
[336390271,1724802640906,-500.0,0.00010958,2]
[336390274,1724802640920,-500.0,0.00010958,2]
[336390276,1724802640932,-500.0,0.00010958,2]
[336390277,1724802640944,-900.28,0.00010958,2]
[336390278,1724802640956,-500.0,0.00010958,2]
[336390279,1724802640969,-500.0,0.00010958,2]
[336390280,1724802640981,-500.0,0.00010958,2]
[336390281,1724802640995,-763.62,0.00010958,2]
[336390282,1724802641007,-402.7192812,0.00010958,2]
[336390283,1724802641019,-1958.28,0.00010958,2]
[336390284,1724802641033,-1720.04,0.00010958,2]
[336390285,1724802641045,-796.45,0.00010958,2]
[336390286,1724802641058,-4130.13,0.00010958,2]
[336390287,1724802641071,-500.0,0.00010958,2]
[336390288,1724802641083,-594.11900171,0.00010958,2]
[336390289,1724802641095,-500.0,0.00010958,2]
[336390290,1724802641109,-500.0,0.00010958,2]
[336390291,1724802641121,-500.0,0.00010958,2]
[336390292,1724802641137,-3317.75,0.00010958,2]
[336390293,1724802641149,-500.0,0.00010958,2]
[336390294,1724802641162,-500.0,0.00010958,2]
[336390295,1724802641178,-500.0,0.00010958,2]
[336390296,1724802641190,-500.0,0.00010958,2]
[336390297,1724802641200,-500.0,0.00010958,2]
[336390298,1724802641211,-500.0,0.00010958,2]
[336390299,1724802641221,-500.0,0.00010958,2]
[336390300,1724802641233,-500.0,0.00010958,2]
[336390301,1724802641254,-500.0,0.00010958,2]